[Event "Titled Tuesday Blitz August 17 2021"]
[White "Gunduz, Umut Erdem"]
[Black "Hamley, Ryan"]
[WhiteFideId "6381383"]
[BlackFideId "30959497"]
[WhiteElo "2096"]
[BlackElo "2418"]
[Result "1-0"]
[Round "11"]
[TimeControl "180+1"]
[Date "2021.08.17"]
[WhiteClock "0:00:48"]
[BlackClock "0:00:06"]

1. e4 {[%clk 0:03:00]}  e5 {[%clk 0:02:39]} 2. Nf3 {[%clk 0:03:00]}  Nc6 {[%clk 0:02:38]} 3. Bb5 {[%clk 0:03:00]}  a6 {[%clk 0:02:37]} 4. Ba4 {[%clk 0:03:00]}  Nf6 {[%clk 0:02:37]} 5. O-O {[%clk 0:03:00]}  Bc5 {[%clk 0:02:37]} 6. c3 {[%clk 0:03:00]}  b5 {[%clk 0:02:37]} 7. Bc2 {[%clk 0:03:00]}  d6 {[%clk 0:02:38]} 8. h3 {[%clk 0:02:59]}  h6 {[%clk 0:02:34]} 9. d3 {[%clk 0:02:56]}  O-O {[%clk 0:02:30]} 10. Nbd2 {[%clk 0:02:57]}  Bb6 {[%clk 0:02:26]} 11. Re1 {[%clk 0:02:56]}  Ne7 {[%clk 0:02:26]} 12. Nf1 {[%clk 0:02:56]}  Ng6 {[%clk 0:02:26]} 13. Ng3 {[%clk 0:02:57]}  Be6 {[%clk 0:02:26]} 14. d4 {[%clk 0:02:51]}  Re8 {[%clk 0:02:16]} 15. Be3 {[%clk 0:02:50]}  c5 {[%clk 0:02:11]} 16. d5 {[%clk 0:02:49]}  Bd7 {[%clk 0:02:09]} 17. Qd2 {[%clk 0:02:47]}  c4 {[%clk 0:02:09]} 18. b4 {[%clk 0:02:37]}  Bxe3 {[%clk 0:01:58]} 19. Qxe3 {[%clk 0:02:38]}  Qc7 {[%clk 0:01:52]} 20. a4 {[%clk 0:02:36]}  Nf4 {[%clk 0:01:44]} 21. Ne2 {[%clk 0:02:32]}  Ng6 {[%clk 0:01:38]} 22. Ra3 {[%clk 0:02:30]}  Nh5 {[%clk 0:01:19]} 23. Rea1 {[%clk 0:02:24]}  Qb7 {[%clk 0:01:05]} 24. axb5 {[%clk 0:02:20]}  Bxb5 {[%clk 0:01:00]} 25. Ba4 {[%clk 0:02:18]}  Nhf4 {[%clk 0:00:57]} 26. Nxf4 {[%clk 0:02:13]}  Nxf4 {[%clk 0:00:58]} 27. Bxb5 {[%clk 0:02:13]}  axb5 {[%clk 0:00:56]} 28. Ra7 {[%clk 0:02:13]}  Rxa7 {[%clk 0:00:53]} 29. Rxa7 {[%clk 0:02:13]}  Qc8 {[%clk 0:00:51]} 30. Nh4 {[%clk 0:02:06]}  Qd8 {[%clk 0:00:46]} 31. Nf5 {[%clk 0:02:01]}  Qg5 {[%clk 0:00:46]} 32. Qf3 {[%clk 0:01:51]}  Rd8 {[%clk 0:00:41]} 33. h4 {[%clk 0:01:50]}  Qf6 {[%clk 0:00:38]} 34. g3 {[%clk 0:01:49]}  Nd3 {[%clk 0:00:30]} 35. Ne7+ {[%clk 0:01:46]}  Kf8 {[%clk 0:00:26]} 36. Qxf6 {[%clk 0:01:43]}  gxf6 {[%clk 0:00:26]} 37. Nf5 {[%clk 0:01:41]}  h5 {[%clk 0:00:21]} 38. Rb7 {[%clk 0:01:39]}  Nc1 {[%clk 0:00:19]} 39. Kf1 {[%clk 0:01:39]}  Na2 {[%clk 0:00:19]} 40. g4 {[%clk 0:01:08]}  hxg4 {[%clk 0:00:16]} 41. h5 {[%clk 0:01:05]}  Nxc3 {[%clk 0:00:16]} 42. h6 {[%clk 0:01:05]}  Kg8 {[%clk 0:00:16]} 43. h7+ {[%clk 0:00:55]}  Kxh7 {[%clk 0:00:16]} 44. Rxf7+ {[%clk 0:00:55]}  Kg8 {[%clk 0:00:15]} 45. Rg7+ {[%clk 0:00:54]}  Kf8 {[%clk 0:00:15]} 46. Rxg4 {[%clk 0:00:54]}  Na2 {[%clk 0:00:11]} 47. Ng7 {[%clk 0:00:54]}  Ra8 {[%clk 0:00:10]} 48. Ne6+ {[%clk 0:00:54]}  Kf7 {[%clk 0:00:05]} 49. Rg7+ {[%clk 0:00:54]}  Ke8 {[%clk 0:00:06]} 50. Rg8+ {[%clk 0:00:55]}  Kf7 {[%clk 0:00:06]} 51. Rxa8 {[%clk 0:00:56]}  Nxb4 {[%clk 0:00:07]} 52. Rb8 {[%clk 0:00:54]}  c3 {[%clk 0:00:07]} 53. Ke2 {[%clk 0:00:48]}  c2 {[%clk 0:00:06]} 54. Kd2 {[%clk 0:00:48]}  f5 {[%clk 0:00:06]} 55. f3 {[%clk 0:00:47]}  fxe4 {[%clk 0:00:05]} 56. fxe4 {[%clk 0:00:48]}  Kf6 {[%clk 0:00:06]} 57. Rxb5 {[%clk 0:00:48]} 1-0


[Site "https://www.chess.com"]

[Event "Titled Tuesday Blitz August 17 2021"]
[White "Iskusnyh, Sergei"]
[Black "Leitao, Rafael"]
[WhiteFideId "4120027"]
[BlackFideId "2101246"]
[WhiteElo "2492"]
[BlackElo "2609"]
[Result "1/2-1/2"]
[Round "11"]
[TimeControl "180+1"]
[Date "2021.08.17"]
[WhiteClock "0:00:10"]
[BlackClock "0:00:20"]

1. d4 {[%clk 0:03:00]}  Nf6 {[%clk 0:02:57]} 2. c4 {[%clk 0:03:00]}  g6 {[%clk 0:02:54]} 3. g3 {[%clk 0:03:01]}  Bg7 {[%clk 0:02:53]} 4. Bg2 {[%clk 0:03:01]}  c5 {[%clk 0:02:53]} 5. dxc5 {[%clk 0:03:00]}  Qa5+ {[%clk 0:02:51]} 6. Nc3 {[%clk 0:03:00]}  Qxc5 {[%clk 0:02:51]} 7. Bd2 {[%clk 0:03:00]}  Qc7 {[%clk 0:02:50]} 8. Rc1 {[%clk 0:02:59]}  O-O {[%clk 0:02:49]} 9. Nh3 {[%clk 0:02:59]}  d6 {[%clk 0:02:34]} 10. Nf4 {[%clk 0:02:58]}  Nc6 {[%clk 0:02:34]} 11. Ncd5 {[%clk 0:02:57]}  Qd8 {[%clk 0:02:33]} 12. Bc3 {[%clk 0:02:53]}  Nxd5 {[%clk 0:02:21]} 13. Nxd5 {[%clk 0:02:52]}  Bxc3+ {[%clk 0:02:20]} 14. Rxc3 {[%clk 0:02:51]}  Be6 {[%clk 0:02:10]} 15. O-O {[%clk 0:02:49]}  Rc8 {[%clk 0:02:10]} 16. Qd2 {[%clk 0:02:41]}  Ne5 {[%clk 0:02:08]} 17. Rfc1 {[%clk 0:02:37]}  Qd7 {[%clk 0:02:01]} 18. Ne3 {[%clk 0:02:15]}  b5 {[%clk 0:01:40]} 19. cxb5 {[%clk 0:01:58]}  Rxc3 {[%clk 0:01:31]} 20. Rxc3 {[%clk 0:01:48]}  Qxb5 {[%clk 0:01:31]} 21. Bd5 {[%clk 0:01:23]}  Bd7 {[%clk 0:01:21]} 22. Rc7 {[%clk 0:01:15]}  Rb8 {[%clk 0:01:03]} 23. Rxa7 {[%clk 0:01:04]}  Qb6 {[%clk 0:00:56]} 24. Ra5 {[%clk 0:00:26]}  Qxb2 {[%clk 0:00:52]} 25. Qxb2 {[%clk 0:00:24]}  Rxb2 {[%clk 0:00:52]} 26. Nc4 {[%clk 0:00:20]}  Rxe2 {[%clk 0:00:47]} 27. Nxe5 {[%clk 0:00:19]}  Rxe5 {[%clk 0:00:43]} 28. f4 {[%clk 0:00:16]}  Re2 {[%clk 0:00:36]} 29. Ra7 {[%clk 0:00:16]}  Bg4 {[%clk 0:00:34]} 30. a4 {[%clk 0:00:14]}  Kf8 {[%clk 0:00:32]} 31. a5 {[%clk 0:00:14]}  Rd2 {[%clk 0:00:32]} 32. Bc6 {[%clk 0:00:14]}  Ra2 {[%clk 0:00:30]} 33. a6 {[%clk 0:00:14]}  Be2 {[%clk 0:00:30]} 34. Bb7 {[%clk 0:00:12]}  Kg7 {[%clk 0:00:28]} 35. Bd5 {[%clk 0:00:11]}  Ra1+ {[%clk 0:00:24]} 36. Kf2 {[%clk 0:00:11]}  Bxa6 {[%clk 0:00:20]} 37. Bc4 {[%clk 0:00:11]}  Bxc4 {[%clk 0:00:17]} 38. Rxa1 {[%clk 0:00:10]}  Be6 {[%clk 0:00:18]} 39. Ke3 {[%clk 0:00:10]}  Kf6 {[%clk 0:00:18]} 40. Ra7 {[%clk 0:00:11]}  h5 {[%clk 0:00:18]} 41. Rb7 {[%clk 0:00:10]}  Bf5 {[%clk 0:00:18]} 42. Ra7 {[%clk 0:00:10]}  Be6 {[%clk 0:00:19]} 43. Rb7 {[%clk 0:00:10]}  Bf5 {[%clk 0:00:20]} 44. Ra7 {[%clk 0:00:10]}  Be6 {[%clk 0:00:20]} 1/2-1/2


[Site "https://www.chess.com"]

[Event "Titled Tuesday Blitz August 17 2021"]
[White "Ivanisevic, Ivan"]
[Black "Tregubov, Pavel V."]
[WhiteFideId "912417"]
[BlackFideId "4115341"]
[WhiteElo "2499"]
[BlackElo "2423"]
[Result "1-0"]
[Round "11"]
[TimeControl "180+1"]
[Date "2021.08.17"]
[WhiteClock "0:01:31"]
[BlackClock "0:01:24"]

1. d4 {[%clk 0:03:00]}  Nf6 {[%clk 0:02:58]} 2. c4 {[%clk 0:03:01]}  e6 {[%clk 0:02:58]} 3. Nc3 {[%clk 0:03:01]}  Bb4 {[%clk 0:02:58]} 4. e3 {[%clk 0:03:02]}  O-O {[%clk 0:02:57]} 5. Ne2 {[%clk 0:03:02]}  d5 {[%clk 0:02:58]} 6. a3 {[%clk 0:03:02]}  Be7 {[%clk 0:02:56]} 7. cxd5 {[%clk 0:03:01]}  exd5 {[%clk 0:02:56]} 8. h3 {[%clk 0:03:01]}  Re8 {[%clk 0:02:44]} 9. g4 {[%clk 0:03:01]}  Bf8 {[%clk 0:02:41]} 10. Bg2 {[%clk 0:03:01]}  c6 {[%clk 0:02:35]} 11. O-O {[%clk 0:03:00]}  h5 {[%clk 0:02:22]} 12. f3 {[%clk 0:02:17]}  c5 {[%clk 0:02:21]} 13. g5 {[%clk 0:02:11]}  Nfd7 {[%clk 0:01:59]} 14. Nxd5 {[%clk 0:02:00]}  Nc6 {[%clk 0:01:48]} 15. f4 {[%clk 0:01:52]}  cxd4 {[%clk 0:01:43]} 16. exd4 {[%clk 0:01:51]}  Nb6 {[%clk 0:01:41]} 17. Nxb6 {[%clk 0:01:40]}  Qxb6 {[%clk 0:01:41]} 18. f5 {[%clk 0:01:41]}  Nxd4 {[%clk 0:01:32]} 19. Nxd4 {[%clk 0:01:40]}  Bc5 {[%clk 0:01:33]} 20. Rf4 {[%clk 0:01:35]}  Rd8 {[%clk 0:01:26]} 21. Be3 {[%clk 0:01:34]}  Bxf5 {[%clk 0:01:24]} 22. b4 {[%clk 0:01:31]} 1-0


[Site "https://www.chess.com"]

[Event "Titled Tuesday Blitz August 17 2021"]
[White "Janaszak, Dawid"]
[Black "Matinian, Nikita"]
[WhiteFideId "1119206"]
[BlackFideId "24129100"]
[WhiteElo "2332"]
[BlackElo "2410"]
[Result "0-1"]
[Round "11"]
[TimeControl "180+1"]
[Date "2021.08.17"]
[WhiteClock "0:00:16"]
[BlackClock "0:02:21"]

1. e4 {[%clk 0:03:00]}  c5 {[%clk 0:02:59]} 2. Nc3 {[%clk 0:02:56]}  Nc6 {[%clk 0:02:58]} 3. Bb5 {[%clk 0:02:52]}  Nd4 {[%clk 0:02:59]} 4. Nf3 {[%clk 0:02:53]}  g6 {[%clk 0:02:59]} 5. Nxd4 {[%clk 0:02:24]}  cxd4 {[%clk 0:03:00]} 6. Ne2 {[%clk 0:02:24]}  Bg7 {[%clk 0:02:59]} 7. O-O {[%clk 0:02:22]}  a6 {[%clk 0:02:58]} 8. Bd3 {[%clk 0:02:16]}  Nf6 {[%clk 0:02:56]} 9. b3 {[%clk 0:02:08]}  d5 {[%clk 0:02:55]} 10. e5 {[%clk 0:02:05]}  Nd7 {[%clk 0:02:55]} 11. f4 {[%clk 0:02:03]}  f6 {[%clk 0:02:55]} 12. exf6 {[%clk 0:01:35]}  Nxf6 {[%clk 0:02:51]} 13. Bb2 {[%clk 0:01:33]}  Ne4 {[%clk 0:02:48]} 14. Bxd4 {[%clk 0:01:27]}  Bxd4+ {[%clk 0:02:48]} 15. Nxd4 {[%clk 0:01:28]}  Qb6 {[%clk 0:02:48]} 16. c3 {[%clk 0:01:29]}  Bf5 {[%clk 0:02:48]} 17. Kh1 {[%clk 0:01:10]}  h5 {[%clk 0:02:46]} 18. Nxf5 {[%clk 0:00:53]}  gxf5 {[%clk 0:02:47]} 19. Bxe4 {[%clk 0:00:53]}  dxe4 {[%clk 0:02:46]} 20. d4 {[%clk 0:00:52]}  h4 {[%clk 0:02:45]} 21. h3 {[%clk 0:00:52]}  O-O-O {[%clk 0:02:38]} 22. Qe2 {[%clk 0:00:51]}  Rdg8 {[%clk 0:02:34]} 23. Rad1 {[%clk 0:00:40]}  Rg3 {[%clk 0:02:34]} 24. Qc4+ {[%clk 0:00:39]}  Kb8 {[%clk 0:02:32]} 25. Rf2 {[%clk 0:00:35]}  Rhg8 {[%clk 0:02:29]} 26. Re2 {[%clk 0:00:33]}  Qg6 {[%clk 0:02:27]} 27. Rdd2 {[%clk 0:00:29]}  Rxh3+ {[%clk 0:02:26]} 28. Kg1 {[%clk 0:00:29]}  Rg3 {[%clk 0:02:24]} 29. Rf2 {[%clk 0:00:16]}  e3 {[%clk 0:02:21]} 0-1


[Site "https://www.chess.com"]

[Event "Titled Tuesday Blitz August 17 2021"]
[White "Kononenko, Dmitry"]
[Black "Dronavalli, Harika"]
[WhiteFideId "14113538"]
[BlackFideId "5015197"]
[WhiteElo "2276"]
[BlackElo "2422"]
[Result "0-1"]
[Round "11"]
[TimeControl "180+1"]
[Date "2021.08.17"]
[WhiteClock "0:00:07"]
[BlackClock "0:01:11"]

1. d4 {[%clk 0:02:55]}  Nf6 {[%clk 0:02:59]} 2. c4 {[%clk 0:02:56]}  g6 {[%clk 0:02:59]} 3. Nc3 {[%clk 0:02:55]}  d5 {[%clk 0:03:00]} 4. cxd5 {[%clk 0:02:56]}  Nxd5 {[%clk 0:03:00]} 5. e4 {[%clk 0:02:57]}  Nxc3 {[%clk 0:03:00]} 6. bxc3 {[%clk 0:02:58]}  Bg7 {[%clk 0:03:01]} 7. Rb1 {[%clk 0:02:58]}  O-O {[%clk 0:03:00]} 8. Nf3 {[%clk 0:02:57]}  b6 {[%clk 0:03:01]} 9. Be2 {[%clk 0:02:50]}  Bb7 {[%clk 0:03:01]} 10. d5 {[%clk 0:02:50]}  e6 {[%clk 0:02:59]} 11. c4 {[%clk 0:02:47]}  Nd7 {[%clk 0:02:56]} 12. Bb2 {[%clk 0:02:46]}  Bxb2 {[%clk 0:02:53]} 13. Rxb2 {[%clk 0:02:47]}  Qf6 {[%clk 0:02:53]} 14. Qd4 {[%clk 0:02:31]}  e5 {[%clk 0:02:52]} 15. Qd2 {[%clk 0:02:28]}  Kg7 {[%clk 0:02:50]} 16. h4 {[%clk 0:02:26]}  h6 {[%clk 0:02:49]} 17. g4 {[%clk 0:02:23]}  Qd6 {[%clk 0:02:47]} 18. Rb3 {[%clk 0:02:18]}  Nc5 {[%clk 0:02:46]} 19. Re3 {[%clk 0:02:17]}  Bc8 {[%clk 0:02:47]} 20. Ng1 {[%clk 0:02:08]}  Bd7 {[%clk 0:02:41]} 21. Qc2 {[%clk 0:02:04]}  f5 {[%clk 0:02:32]} 22. gxf5 {[%clk 0:01:39]}  gxf5 {[%clk 0:02:32]} 23. exf5 {[%clk 0:01:40]}  Bxf5 {[%clk 0:02:32]} 24. Qc3 {[%clk 0:01:40]}  Ne4 {[%clk 0:02:22]} 25. Rxe4 {[%clk 0:01:35]}  Bxe4 {[%clk 0:02:22]} 26. Rh3 {[%clk 0:01:33]}  Rae8 {[%clk 0:02:09]} 27. Rg3+ {[%clk 0:01:26]}  Kh8 {[%clk 0:02:08]} 28. Nf3 {[%clk 0:01:15]}  Bxf3 {[%clk 0:02:01]} 29. Bxf3 {[%clk 0:01:16]}  Qf6 {[%clk 0:02:01]} 30. h5 {[%clk 0:01:11]}  e4 {[%clk 0:01:57]} 31. Qxf6+ {[%clk 0:01:02]}  Rxf6 {[%clk 0:01:56]} 32. Be2 {[%clk 0:01:01]}  Rg8 {[%clk 0:01:54]} 33. Re3 {[%clk 0:01:00]}  Rf4 {[%clk 0:01:54]} 34. f3 {[%clk 0:00:47]}  Re8 {[%clk 0:01:31]} 35. Kd2 {[%clk 0:00:39]}  Kg7 {[%clk 0:01:31]} 36. fxe4 {[%clk 0:00:35]}  Rexe4 {[%clk 0:01:30]} 37. Rg3+ {[%clk 0:00:35]}  Kf7 {[%clk 0:01:30]} 38. Bd3 {[%clk 0:00:26]}  Re5 {[%clk 0:01:27]} 39. Kc3 {[%clk 0:00:23]}  Rg5 {[%clk 0:01:25]} 40. Re3 {[%clk 0:00:22]}  Kf6 {[%clk 0:01:23]} 41. Re6+ {[%clk 0:00:21]}  Kf7 {[%clk 0:01:21]} 42. Bg6+ {[%clk 0:00:19]}  Kf8 {[%clk 0:01:19]} 43. Re8+ {[%clk 0:00:19]}  Kg7 {[%clk 0:01:19]} 44. Re7+ {[%clk 0:00:19]}  Kg8 {[%clk 0:01:17]} 45. Rxc7 {[%clk 0:00:18]}  a5 {[%clk 0:01:14]} 46. d6 {[%clk 0:00:15]}  Rg3+ {[%clk 0:01:14]} 47. Kd2 {[%clk 0:00:14]}  Rf2+ {[%clk 0:01:14]} 48. Ke1 {[%clk 0:00:14]}  Rxa2 {[%clk 0:01:13]} 49. Kf1 {[%clk 0:00:09]}  Rc3 {[%clk 0:01:10]} 50. Rc8+ {[%clk 0:00:05]}  Kg7 {[%clk 0:01:10]} 51. Rc7+ {[%clk 0:00:06]}  Kf6 {[%clk 0:01:10]} 52. Rf7+ {[%clk 0:00:06]}  Ke5 {[%clk 0:01:10]} 53. Kg1 {[%clk 0:00:05]}  Rc1+ {[%clk 0:01:09]} 54. Rf1 {[%clk 0:00:06]}  Rxf1+ {[%clk 0:01:10]} 55. Kxf1 {[%clk 0:00:07]}  Kxd6 {[%clk 0:01:11]} 56. Bf7 {[%clk 0:00:06]}  Kc5 {[%clk 0:01:11]} 57. Be6 {[%clk 0:00:07]}  Rb2 {[%clk 0:01:11]} 0-1


[Site "https://www.chess.com"]

[Event "Titled Tuesday Blitz August 17 2021"]
[White "Krysa, Leandro"]
[Black "Sadovsky, Artem"]
[WhiteFideId "116807"]
[BlackFideId "4155840"]
[WhiteElo "2490"]
[BlackElo "2442"]
[Result "0-1"]
[Round "11"]
[TimeControl "180+1"]
[Date "2021.08.17"]
[WhiteClock "0:00:20"]
[BlackClock "0:00:10"]

1. e4 {[%clk 0:03:00]}  d5 {[%clk 0:02:56]} 2. exd5 {[%clk 0:02:54]}  Nf6 {[%clk 0:02:56]} 3. Nf3 {[%clk 0:02:54]}  Nxd5 {[%clk 0:02:54]} 4. d4 {[%clk 0:02:52]}  Bg4 {[%clk 0:02:49]} 5. Be2 {[%clk 0:02:51]}  e6 {[%clk 0:02:49]} 6. O-O {[%clk 0:02:50]}  Bd6 {[%clk 0:02:37]} 7. h3 {[%clk 0:02:48]}  Bh5 {[%clk 0:02:35]} 8. c4 {[%clk 0:02:47]}  Nf4 {[%clk 0:02:30]} 9. Bxf4 {[%clk 0:02:21]}  Bxf4 {[%clk 0:02:31]} 10. Qb3 {[%clk 0:02:19]}  Nd7 {[%clk 0:01:24]} 11. Qxb7 {[%clk 0:02:11]}  Rb8 {[%clk 0:01:18]} 12. Qe4 {[%clk 0:02:02]}  Qf6 {[%clk 0:01:16]} 13. Qc2 {[%clk 0:02:02]}  Bg6 {[%clk 0:01:10]} 14. Qa4 {[%clk 0:01:55]}  Rxb2 {[%clk 0:01:08]} 15. Nc3 {[%clk 0:01:52]}  Qe7 {[%clk 0:00:41]} 16. c5 {[%clk 0:01:51]}  O-O {[%clk 0:00:41]} 17. d5 {[%clk 0:01:41]}  Qxc5 {[%clk 0:00:28]} 18. Qxf4 {[%clk 0:01:35]}  Qxc3 {[%clk 0:00:27]} 19. dxe6 {[%clk 0:01:29]}  fxe6 {[%clk 0:00:27]} 20. Qc4 {[%clk 0:01:29]}  Qxc4 {[%clk 0:00:24]} 21. Bxc4 {[%clk 0:01:30]}  Nc5 {[%clk 0:00:21]} 22. Rfe1 {[%clk 0:01:28]}  Be4 {[%clk 0:00:17]} 23. Bxe6+ {[%clk 0:01:26]}  Kh8 {[%clk 0:00:13]} 24. Ng5 {[%clk 0:00:45]}  Rfxf2 {[%clk 0:00:13]} 25. Nxe4 {[%clk 0:00:45]}  Rxg2+ {[%clk 0:00:14]} 26. Kf1 {[%clk 0:00:46]}  Nxe6 {[%clk 0:00:13]} 27. Rad1 {[%clk 0:00:41]}  h6 {[%clk 0:00:12]} 28. Rd7 {[%clk 0:00:35]}  Nf4 {[%clk 0:00:11]} 29. Rf7 {[%clk 0:00:30]}  Rh2 {[%clk 0:00:11]} 30. Ng3 {[%clk 0:00:20]}  Rbf2+ {[%clk 0:00:10]} 0-1


[Site "https://www.chess.com"]

[Event "Titled Tuesday Blitz August 17 2021"]
[White "Kuzubov, Yuriy"]
[Black "Costachi, Mihnea"]
[WhiteFideId "14112906"]
[BlackFideId "1217518"]
[WhiteElo "2564"]
[BlackElo "2482"]
[Result "1-0"]
[Round "11"]
[TimeControl "180+1"]
[Date "2021.08.17"]
[WhiteClock "0:00:08"]
[BlackClock "0:00:30"]

1. g3 {[%clk 0:03:00]}  Nf6 {[%clk 0:02:58]} 2. Nf3 {[%clk 0:02:44]}  g6 {[%clk 0:02:58]} 3. Bg2 {[%clk 0:02:45]}  Bg7 {[%clk 0:02:59]} 4. d4 {[%clk 0:02:45]}  O-O {[%clk 0:03:00]} 5. c4 {[%clk 0:02:46]}  d6 {[%clk 0:03:00]} 6. O-O {[%clk 0:02:45]}  Nc6 {[%clk 0:03:01]} 7. Re1 {[%clk 0:02:46]}  Bf5 {[%clk 0:03:01]} 8. Nbd2 {[%clk 0:02:43]}  Ne4 {[%clk 0:03:00]} 9. Nf1 {[%clk 0:02:43]}  e5 {[%clk 0:02:58]} 10. d5 {[%clk 0:02:40]}  Ne7 {[%clk 0:02:59]} 11. Nh4 {[%clk 0:02:40]}  Nc5 {[%clk 0:02:59]} 12. Nxf5 {[%clk 0:02:40]}  Nxf5 {[%clk 0:02:59]} 13. b4 {[%clk 0:02:40]}  Nd7 {[%clk 0:02:59]} 14. a3 {[%clk 0:02:35]}  Ne7 {[%clk 0:02:58]} 15. e4 {[%clk 0:02:33]}  f5 {[%clk 0:02:59]} 16. Nd2 {[%clk 0:02:25]}  f4 {[%clk 0:02:59]} 17. Bh3 {[%clk 0:02:24]}  g5 {[%clk 0:02:57]} 18. Nf3 {[%clk 0:02:22]}  Bf6 {[%clk 0:02:47]} 19. Be6+ {[%clk 0:02:16]}  Kh8 {[%clk 0:02:47]} 20. g4 {[%clk 0:02:16]}  Ng6 {[%clk 0:02:45]} 21. h3 {[%clk 0:02:13]}  Qe7 {[%clk 0:02:44]} 22. Bf5 {[%clk 0:02:12]}  Kg7 {[%clk 0:02:40]} 23. Kg2 {[%clk 0:02:07]}  Rh8 {[%clk 0:02:40]} 24. Bd2 {[%clk 0:01:59]}  h5 {[%clk 0:02:41]} 25. Rc1 {[%clk 0:01:58]}  hxg4 {[%clk 0:02:38]} 26. hxg4 {[%clk 0:01:56]}  Nh4+ {[%clk 0:02:37]} 27. Nxh4 {[%clk 0:01:54]}  Rxh4 {[%clk 0:02:38]} 28. Qe2 {[%clk 0:01:52]}  Rah8 {[%clk 0:02:36]} 29. Rh1 {[%clk 0:01:53]}  Nf8 {[%clk 0:02:32]} 30. Rxh4 {[%clk 0:01:51]}  Rxh4 {[%clk 0:02:33]} 31. f3 {[%clk 0:01:45]}  Ng6 {[%clk 0:02:32]} 32. Be1 {[%clk 0:01:45]}  Rh8 {[%clk 0:02:29]} 33. c5 {[%clk 0:01:28]}  Nh4+ {[%clk 0:02:29]} 34. Bxh4 {[%clk 0:01:27]}  Rxh4 {[%clk 0:02:25]} 35. cxd6 {[%clk 0:01:22]}  Qxd6 {[%clk 0:02:21]} 36. Qf2 {[%clk 0:01:22]}  Bd8 {[%clk 0:02:15]} 37. Rh1 {[%clk 0:01:08]}  Rxh1 {[%clk 0:02:13]} 38. Kxh1 {[%clk 0:01:09]}  Qa6 {[%clk 0:02:09]} 39. Qb2 {[%clk 0:00:36]}  Qf1+ {[%clk 0:01:55]} 40. Kh2 {[%clk 0:00:36]}  Kf6 {[%clk 0:01:51]} 41. Qg2 {[%clk 0:00:33]}  Qa1 {[%clk 0:01:38]} 42. Qd2 {[%clk 0:00:29]}  Qxa3 {[%clk 0:01:34]} 43. Kg2 {[%clk 0:00:24]}  Be7 {[%clk 0:01:34]} 44. d6 {[%clk 0:00:24]}  Bxd6 {[%clk 0:01:15]} 45. Qd5 {[%clk 0:00:21]}  Qb2+ {[%clk 0:01:14]} 46. Kh3 {[%clk 0:00:21]}  Qf2 {[%clk 0:00:59]} 47. Qe6+ {[%clk 0:00:19]}  Kg7 {[%clk 0:01:00]} 48. Qg6+ {[%clk 0:00:18]}  Kf8 {[%clk 0:01:00]} 49. Qh6+ {[%clk 0:00:14]}  Ke8 {[%clk 0:00:59]} 50. Qe6+ {[%clk 0:00:13]}  Kf8 {[%clk 0:00:59]} 51. Qc8+ {[%clk 0:00:13]}  Ke7 {[%clk 0:00:57]} 52. Qe6+ {[%clk 0:00:12]}  Kf8 {[%clk 0:00:56]} 53. Qf6+ {[%clk 0:00:12]}  Ke8 {[%clk 0:00:55]} 54. Bg6+ {[%clk 0:00:11]}  Kd7 {[%clk 0:00:55]} 55. Qf7+ {[%clk 0:00:10]}  Kc6 {[%clk 0:00:53]} 56. Qd5+ {[%clk 0:00:08]}  Kd7 {[%clk 0:00:44]} 57. Bf5+ {[%clk 0:00:09]}  Ke8 {[%clk 0:00:38]} 58. Qg8+ {[%clk 0:00:08]}  Ke7 {[%clk 0:00:38]} 59. Qg7+ {[%clk 0:00:09]}  Ke8 {[%clk 0:00:39]} 60. Bg6+ {[%clk 0:00:09]}  Kd8 {[%clk 0:00:39]} 61. Qg8+ {[%clk 0:00:09]}  Bf8 {[%clk 0:00:32]} 62. Qxf8+ {[%clk 0:00:09]}  Kd7 {[%clk 0:00:33]} 63. Be8+ {[%clk 0:00:09]}  Ke6 {[%clk 0:00:30]} 64. Qf7+ {[%clk 0:00:08]}  Kd6 {[%clk 0:00:30]} 65. Qd7# {[%clk 0:00:08]} 1-0


[Site "https://www.chess.com"]